bitfinex-derivatives/quotes_SOLF0:USTF0_20250731
["timestamp","ask_amount","ask_price","bid_price","bid_amount"]
[1753967481452,5.6195,177.98,177.94,5.6203]
[1753967482155,3.98055499,177.98,177.91,3.98055499]
[1753967482555,3.98055499,177.98,177.89,3.98055499]
[1753967483155,5.6205,177.95,177.92,5.621]
[1753967483755,5.6201,177.96,177.93,5.6208]
[1753967483954,5.6201,177.96,177.89,3.98055499]
[1753967484155,3.98055499,178.01,177.93,3.98055499]
[1753967484350,3.98055499,178.04,177.95,3.98055499]
[1753967484562,3.98055499,178.04,177.97,3.98055499]
[1753967484855,5.6187,178.0,177.97,9.60015499]
[1753967485856,5.6185,178.01,177.97,9.60015499]
[1753967486357,3.98055499,178.04,177.96,5.6199]
[1753967486956,5.619,178.0,177.96,5.6199]
[1753967487554,5.619,177.99,177.96,5.6199]
[1753967487754,3.98055499,178.02,177.97,5.6196]
[1753967488058,5.6189,178.0,177.95,3.98055499]
[1753967488560,3.98055499,178.02,177.95,3.98055499]
[1753967488760,3.98055499,178.04,177.98,5.6192]
[1753967489255,3.98055499,178.04,177.96,3.98055499]
[1753967489466,3.98055499,178.06,177.98,3.98055499]
[1753967489858,5.6175,178.04,178.0,5.6187]
[1753967490165,3.98055499,178.06,177.98,3.98055499]
[1753967490362,4.12213519,178.05,177.98,3.98055499]
[1753967490565,3.98055499,178.06,177.99,5.6187]
[1753967490762,4.12241179,178.05,177.99,5.6187]
[1753967490965,5.6179,178.03,177.99,5.6187]
[1753967491567,5.6181,178.02,177.98,5.6192]
[1753967492068,6.48261933,178.07,177.98,5.6192]
[1753967492268,5.6183,178.02,177.98,5.6192]
[1753967492964,6.48261933,178.05,177.97,5.6196]
[1753967493160,6.48261933,178.03,177.93,6.48261933]
[1753967493357,5.6189,178.0,177.93,6.48261933]
[1753967493563,5.6189,178.0,177.96,5.6196]
[1753967493762,6.48261933,178.03,177.93,6.48261933]
[1753967494056,6.48261933,178.03,177.95,6.48261933]
[1753967494864,6.48261933,178.03,177.93,6.48261933]
[1753967495167,11.2333,178.07,177.91,6.48261933]
[1753967495168,6.48261933,178.01,177.91,6.48261933]
[1753967495368,6.48261933,178.01,177.94,5.6206]
[1753967495568,6.48261933,178.01,177.91,6.48261933]
[1753967495964,6.48261933,178.01,177.93,5.6208]
[1753967496966,6.48261933,177.99,177.91,5.6214]
[1753967497465,5.6204,177.95,177.92,5.6209]
[1753967497665,6.48261933,177.99,177.88,6.48261933]
[1753967498263,5.6203,177.95,177.92,5.621]
[1753967499273,6.48261933,177.97,177.87,377.32]
[1753967499572,6.48261933,177.97,177.87,383.80261933]
[1753967500371,6.48261933,177.98,177.87,383.80261933]
[1753967500963,5.6205,177.95,177.91,5.6214]
[1753967501672,5.6206,177.94,177.91,5.6214]
[1753967503066,5.6204,177.95,177.92,5.6211]
[1753967503771,6.48261933,177.98,177.89,6.48261933]
[1753967504272,5.62,177.96,177.93,5.6209]
[1753967504473,6.48261933,177.99,177.87,377.32]
[1753967504668,6.48261933,177.99,177.89,6.48261933]
[1753967504975,5.6205,177.95,177.92,5.6212]
[1753967506466,5.62,177.96,177.89,6.48261933]
[1753967506971,5.62,177.96,177.93,5.6206]
[1753967507168,5.62,177.96,177.89,6.48261933]
[1753967507465,6.48261933,177.99,177.89,6.48261933]
[1753967507672,6.48261933,178.03,177.93,6.48261933]
[1753967507871,4.14992209,178.02,177.93,6.48261933]
[1753967508071,5.6187,178.0,177.96,5.6197]
[1753967508273,120.37841291,178.08,177.95,6.48261933]
[1753967508475,10.63389493,178.07,177.97,6.48261933]
[1753967508775,5.6186,178.01,177.98,5.6192]
[1753967509078,5.6186,178.01,177.97,6.48261933]
[1753967509774,5.6186,178.01,177.98,5.6193]
[1753967510080,5.6187,178.0,177.97,6.48261933]
[1753967510273,6.48261933,178.07,177.98,5.6193]
[1753967510473,4.15194506,178.06,177.98,5.6193]
[1753967510772,8.13003487,178.05,177.98,9.59738981]
[1753967511075,5.6181,178.02,177.99,5.6189]
[1753967511377,3.97808981,178.07,177.98,3.97808981]
[1753967511568,4.1510945,178.06,177.98,3.97808981]
[1753967511767,3.97808981,178.05,177.98,3.97808981]
[1753967511968,4.15062106,178.04,177.96,3.97808981]
[1753967512168,3.97808981,178.05,177.97,5.6196]
[1753967512169,5.6186,178.01,177.97,5.6196]
[1753967512468,3.97808981,178.05,177.97,5.6196]
[1753967513575,4.15176286,178.04,177.93,104.52]
[1753967513774,3.97808981,178.05,177.96,3.97808981]
[1753967513975,4.15173618,178.04,177.96,3.97808981]
[1753967514172,3.97808981,178.05,177.96,3.97808981]
[1753967514373,4.15173844,178.04,177.96,3.97808981]
[1753967514573,5.6189,178.0,177.96,3.97808981]
[1753967515077,5.6189,178.0,177.95,5.6201]
[1753967515078,3.97808981,178.03,177.94,9.59858981]
[1753967515276,3.97808981,178.03,177.94,3.97808981]
[1753967515872,5.6193,177.99,177.95,5.6201]
[1753967516279,3.97808981,178.03,177.95,5.6201]
[1753967516783,3.97808981,178.03,177.94,9.59858981]
[1753967517170,3.97808981,177.99,177.87,377.32]
[1753967517374,3.97808981,177.95,177.79,12.47289805]
[1753967517578,3.97808981,177.95,177.87,3.97808981]
[1753967517869,5.6211,177.93,177.81,104.72]
[1753967518074,5.6211,177.93,177.87,3.97808981]
[1753967518674,3.97808981,177.97,177.89,3.97808981]
[1753967519379,5.6205,177.95,177.91,5.6213]
[1753967519579,3.97808981,177.97,177.89,3.97808981]
[1753967519985,3.97808981,177.99,177.92,3.97808981]
[1753967520373,3.97808981,178.01,177.92,3.97808981]
[1753967520580,5.6192,177.99,177.94,5.6204]
[1753967520778,3.97808981,178.01,177.94,5.6204]
[1753967520982,4.15257277,178.0,177.94,5.6204]
[1753967521179,3.97808981,178.01,177.93,5.6208]
[1753967521484,3.97808981,177.99,177.92,3.97808981]
[1753967521785,5.6196,177.97,177.92,9.59928981]
[1753967522173,3.97808981,177.99,177.93,5.6209]
[1753967522373,4.58591291,178.04,177.92,3.97808981]
[1753967522580,4.58591291,178.04,177.87,104.7]
[1753967522581,3.97808981,177.99,177.91,3.97808981]
[1753967522983,3.97808981,177.99,177.92,5.6211]
[1753967524385,5.6201,177.96,177.92,5.6211]
[1753967524979,5.6203,177.95,177.92,5.6211]
[1753967525382,3.97808981,177.99,177.92,5.6211]
[1753967525582,5.6196,177.97,177.92,5.6211]
[1753967525885,5.6196,177.97,177.93,5.6208]
[1753967526181,5.6201,177.96,177.91,3.97808981]
[1753967526486,3.97808981,178.0,177.91,3.97808981]
[1753967526780,5.6197,177.97,177.91,3.97808981]
[1753967526989,5.6197,177.97,177.93,5.6207]
[1753967527190,4.58591291,178.04,177.95,3.97808981]
[1753967527382,4.58591291,178.04,177.97,9.59748981]
[1753967527684,10.16759119,178.06,177.97,9.59748981]
[1753967527685,3.97808981,178.06,177.97,3.97808981]
[1753967527986,5.6181,178.02,177.98,5.6192]
[1753967528383,5.6181,178.02,177.97,3.97808981]
[1753967528881,5.6184,178.01,177.98,5.6192]
[1753967529082,5.6184,178.01,177.97,3.97808981]
[1753967529585,3.97808981,178.04,177.95,3.97808981]
[1753967529986,4.15344003,178.03,177.96,5.6198]
[1753967530182,5.6192,177.99,177.95,3.97808981]
[1753967531082,5.6188,178.0,177.96,5.6197]
[1753967531287,4.58591291,178.07,177.97,3.97808981]
[1753967531288,3.97808981,178.04,177.97,3.97808981]
[1753967531483,4.15374874,178.03,177.9,104.54]
[1753967531688,5.6186,178.01,177.97,9.59748981]
[1753967532088,5.6182,178.02,177.99,5.6188]
[1753967532485,3.97808981,178.03,177.9,104.52]
[1753967532679,5.6189,178.0,177.96,5.6197]
[1753967533489,3.97808981,178.03,177.97,5.6196]
[1753967534591,5.6189,178.0,177.97,5.6196]
[1753967535090,3.97808981,178.03,177.97,5.6196]
[1753967535693,3.97808981,178.05,177.97,3.97808981]
[1753967535890,5.6182,178.02,177.97,3.97808981]
[1753967536292,5.6182,178.02,177.99,5.6188]
[1753967536494,5.6185,178.01,177.97,3.97808981]
[1753967536686,3.97808981,178.05,177.97,3.97808981]
[1753967536886,4.15473248,178.04,177.97,3.97808981]
[1753967537090,5.6186,178.01,177.98,5.6193]
[1753967537290,104.56,178.09,177.99,3.97808981]
[1753967537593,4.15540097,178.08,178.01,3.97808981]
[1753967537893,4.15540097,178.07,178.01,3.97808981]
[1753967538092,3.97808981,178.08,178.02,5.6179]
[1753967538588,3.97808981,178.09,178.01,3.97808981]
[1753967538792,4.15497996,178.08,178.01,3.97808981]
[1753967538994,4.15497996,178.07,178.01,3.97808981]
[1753967539197,3.97808981,178.09,178.03,5.6176]
[1753967539395,4.15415328,178.08,178.03,5.6176]
[1753967539695,3.97808981,178.09,178.04,5.6174]
[1753967539996,4.1542141,178.08,178.04,5.6174]
[1753967540196,3.97808981,178.1,178.03,5.6175]
[1753967540391,4.15335677,178.09,178.03,5.6175]
[1753967540595,4.15335677,178.08,178.03,5.6175]
[1753967540786,3.97808981,178.08,178.0,3.97808981]
[1753967540990,3.97808981,178.06,177.98,3.97808981]
[1753967541391,3.97808981,178.11,177.96,3.97808981]
[1753967541392,3.97808981,178.04,177.96,3.97808981]
[1753967541595,3.97808981,178.02,177.94,3.97808981]
[1753967541994,5.6188,178.0,177.96,5.6198]
[1753967542196,3.97808981,178.02,177.94,3.97808981]
[1753967543503,5.6189,178.0,177.97,5.6194]
[1753967543799,5.6185,178.01,177.98,5.6193]
[1753967544099,3.97808981,178.04,177.95,3.97808981]
[1753967544397,5.6189,178.0,177.97,5.6194]
[1753967544595,3.97808981,178.02,177.95,3.97808981]
[1753967545097,5.6192,177.99,177.96,5.6197]
[1753967545893,5.6192,177.99,177.97,5.6196]
[1753967546097,5.6188,178.0,177.97,5.6196]
[1753967546996,5.6188,178.0,177.98,5.6193]
[1753967548203,5.6188,178.0,177.97,5.6195]
[1753967549292,3.97808981,178.04,177.97,3.97808981]
[1753967549498,3.97808981,178.06,177.99,3.97808981]
[1753967549698,4.15257617,178.05,177.99,3.97808981]
[1753967549897,5.6175,178.04,178.01,5.6182]
[1753967550596,5.6177,178.03,178.0,5.6185]
[1753967551393,5.6177,178.03,178.01,5.6183]
[1753967551903,3.97808981,178.09,178.01,3.97808981]
[1753967552101,4.15351787,178.08,178.01,3.97808981]
[1753967552295,3.97808981,178.09,178.01,3.97808981]
[1753967552497,4.15360444,178.08,178.02,5.6178]
[1753967552800,5.6171,178.05,178.01,3.97808981]
[1753967553297,5.6171,178.05,178.02,5.618]
[1753967553496,5.6171,178.05,178.01,3.97808981]
[1753967553898,5.6171,178.05,177.93,3.97808981]
[1753967553899,4.58591291,178.13,178.03,3.97808981]
[1753967554100,4.15393311,178.12,178.05,3.97808981]
[1753967554293,4.15393311,178.11,178.05,3.97808981]
[1753967554494,5.6157,178.1,178.05,3.97808981]
[1753967554901,3.97808981,178.13,178.06,5.6165]
[1753967555098,4.18578577,178.12,178.06,5.6165]
[1753967555299,4.18578577,178.11,178.06,5.6165]
[1753967555505,5.6158,178.1,178.06,5.6165]
[1753967555703,3.97808981,178.13,178.06,5.6165]
[1753967555902,4.18458851,178.12,178.06,5.6165]
[1753967556102,4.18458851,178.11,178.06,5.6165]
[1753967556301,3.97808981,178.13,178.06,5.6165]
[1753967556502,3.97808981,178.11,178.04,5.6172]
[1753967556801,3.97808981,178.11,178.02,3.97808981]
[1753967557001,3.97808981,178.11,178.04,3.97808981]
[1753967557808,3.97808981,178.11,178.03,5.6174]
[1753967558307,3.97808981,178.11,178.04,5.6173]
[1753967558903,5.6169,178.06,178.03,5.6177]
[1753967559113,3.97808981,178.11,178.02,3.97808981]
[1753967559298,5.6166,178.07,178.04,5.6174]
[1753967559803,5.6166,178.07,178.05,5.617]
[1753967560203,5.6163,178.08,178.05,5.617]
[1753967561511,5.6159,178.09,178.04,3.97808981]
[1753967562604,5.6166,178.07,178.04,5.6172]
[1753967562806,5.6166,178.07,178.04,3.97808981]
[1753967563004,5.6158,178.09,178.04,3.97808981]
[1753967563310,3.97808981,178.11,178.04,3.97808981]
[1753967563512,5.6163,178.08,178.04,3.97808981]
[1753967563703,5.6163,178.08,178.05,5.6169]
[1753967564011,3.97808981,178.11,178.05,5.6169]
[1753967564499,3.97808981,178.11,178.04,9.59538981]
[1753967564704,3.97808981,178.11,177.95,11.2404]
[1753967564705,3.97808981,178.09,177.95,11.2404]
[1753967564902,3.97808981,178.09,178.0,3.97808981]
[1753967565107,5.6172,178.05,178.0,3.97808981]
[1753967565609,5.6172,178.05,178.02,5.6178]
[1753967565803,5.6174,178.04,178.02,5.6178]
[1753967566002,3.97808981,178.08,178.02,5.6178]
[1753967566403,5.6172,178.05,178.02,5.6178]
[1753967566808,3.97808981,178.1,178.02,3.97808981]
[1753967567013,5.6167,178.07,178.02,3.97808981]
[1753967567212,5.6167,178.07,178.05,5.617]
[1753967567509,3.97808981,178.13,178.04,3.97808981]
[1753967567707,4.18090537,178.12,178.06,5.6166]
[1753967567909,3.97808981,178.13,178.06,5.6166]
[1753967568218,4.18119491,178.12,178.05,5.6168]
[1753967568515,3.97808981,178.13,178.05,5.6168]
[1753967568516,5.6163,178.08,178.05,5.6168]
[1753967568702,4.58591291,178.15,178.0,3.97808981]
[1753967568703,3.97808981,178.09,178.0,3.97808981]
[1753967568903,3.97808981,178.09,178.01,5.618]
[1753967569620,5.6174,178.04,178.01,5.618]
[1753967570914,3.97808981,178.05,177.96,3.97808981]
[1753967571403,3.97808981,178.05,177.98,3.97808981]
[1753967572113,11.2319,178.09,177.98,3.97808981]
[1753967572320,3.97808981,178.06,177.96,3.97808981]
[1753967572508,3.97808981,178.04,177.96,3.97808981]
[1753967572812,15.81781291,178.09,177.91,11.2425]
[1753967572813,3.97808981,178.06,177.98,3.97808981]
[1753967573414,3.97808981,178.06,178.01,5.6183]
[1753967573611,3.97808981,178.06,177.98,3.97808981]
[1753967573813,5.6177,178.04,178.0,5.6184]
[1753967574114,3.97808981,178.06,178.0,5.6184]
[1753967575518,5.6178,178.03,178.0,5.6184]
[1753967576815,3.97808981,178.06,178.01,5.6183]
[1753967576816,5.6175,178.04,178.01,5.6183]
[1753967577119,3.97808981,178.06,178.01,5.6183]
[1753967577319,5.6178,178.03,178.0,5.6185]
[1753967577619,3.97808981,178.06,178.0,5.6185]
[1753967578415,4.1834935,178.05,177.99,5.6189]
[1753967578616,3.97808981,178.04,177.96,3.97808981]
[1753967578811,3.97808981,178.04,177.98,5.6193]
[1753967579017,3.97808981,178.04,177.95,3.97808981]
[1753967579616,5.6185,178.01,177.98,5.6191]
[1753967580014,3.97808981,178.04,177.95,3.97808981]
[1753967580211,5.6187,178.0,177.95,3.97808981]
[1753967580413,3.97808981,178.04,177.95,3.97808981]
[1753967580621,5.6185,178.01,177.98,5.6191]
[1753967581017,5.6185,178.01,177.95,3.97808981]
[1753967581221,5.6182,178.02,177.95,3.97808981]
[1753967581412,3.97808981,178.06,177.97,3.97808981]
[1753967581612,4.18400156,178.05,177.97,3.97808981]
[1753967581820,5.6179,178.03,178.0,5.6185]
[1753967582024,3.97808981,178.08,178.01,3.97808981]
[1753967582321,4.18405109,178.07,178.03,3.97808981]
[1753967582522,3.97808981,178.1,178.03,3.97808981]
[1753967582716,4.18431022,178.09,178.03,3.97808981]
[1753967582912,3.97808981,178.1,178.03,3.97808981]
[1753967583222,5.6169,178.06,178.03,9.59558981]
[1753967583424,3.97808981,178.06,177.99,3.97808981]
[1753967583625,5.6174,178.04,177.99,3.97808981]
[1753967584118,3.97808981,178.1,178.03,3.97808981]
[1753967584330,4.18310784,178.09,178.03,3.97808981]
[1753967584621,5.617,178.06,178.03,5.6177]
[1753967585217,5.6165,178.07,178.04,5.6174]
[1753967585418,3.97808981,178.12,178.05,3.97808981]
[1753967585609,4.18620823,178.11,178.05,3.97808981]
[1753967585810,5.6163,178.08,178.05,9.59498981]
[1753967586015,3.97808981,178.12,178.05,9.59498981]
[1753967586215,4.1884679,178.11,178.04,5.6173]
[1753967586509,3.97808981,178.12,178.03,3.97808981]
[1753967586510,5.6166,178.07,178.03,3.97808981]
[1753967586820,3.97808981,178.1,178.01,3.97808981]
[1753967587020,3.97808981,178.08,178.01,3.97808981]
[1753967587415,5.6168,178.06,178.03,5.6175]
[1753967587618,3.97808981,178.08,178.01,3.97808981]
[1753967588321,5.6173,178.05,178.02,5.6178]
[1753967588823,5.6175,178.04,178.02,5.6178]
[1753967589227,3.97808981,178.08,177.99,3.97808981]
[1753967589521,3.97808981,178.11,177.97,3.97808981]
[1753967589522,3.97808981,178.06,177.97,3.97808981]
[1753967589722,3.97808981,178.06,178.0,5.6185]
[1753967590318,3.97808981,178.06,177.97,3.97808981]
[1753967591123,4.19035881,178.05,177.95,5.6201]
[1753967591326,4.19063407,178.04,177.96,3.97808981]
[1753967591524,3.97808981,178.06,177.96,3.97808981]
[1753967591723,4.19063407,178.05,177.96,3.97808981]
[1753967591927,4.19063407,178.04,177.96,3.97808981]
[1753967592129,5.6187,178.0,177.96,3.97808981]
[1753967592517,3.97808981,178.06,177.96,3.97808981]
[1753967592719,4.19088604,178.05,177.96,3.97808981]
[1753967593025,4.19088604,178.04,177.96,3.97808981]
[1753967593324,3.97808981,178.06,177.96,3.97808981]
[1753967593624,4.19117226,178.05,177.96,3.97808981]
[1753967593819,3.97808981,178.02,177.94,3.97808981]
[1753967594126,4.19024722,178.01,177.92,3.97808981]
[1753967594320,15.82061291,178.05,177.92,3.97808981]
[1753967594321,4.19024722,178.0,177.92,3.97808981]
[1753967594517,5.6202,177.96,177.92,9.59928981]
[1753967594718,3.97808981,178.0,177.92,9.59928981]
[1753967594920,3.97808981,178.0,177.92,3.97808981]
[1753967595117,3.97808981,177.98,177.9,3.97808981]
[1753967595522,5.6204,177.95,177.9,9.59958981]
[1753967595726,3.97808981,177.98,177.9,3.97808981]
[1753967596721,5.6205,177.95,177.9,9.59968981]
[1753967597222,3.97808981,177.98,177.9,5.6216]
[1753967597423,3.97808981,177.94,177.87,3.97808981]
[1753967597621,5.6211,177.93,177.87,3.97808981]
[1753967597824,3.97808981,177.94,177.88,5.6223]
[1753967598020,3.97808981,177.94,177.87,3.97808981]
[1753967598224,5.6212,177.92,177.87,3.97808981]
[1753967598626,3.97808981,177.94,177.87,3.97808981]
[1753967599028,4.58591291,178.0,177.76,388.872]
[1753967599222,3.97808981,177.91,177.82,3.97808981]
[1753967599429,4.58591291,177.99,177.82,3.97808981]
[1753967599622,3.97808981,177.92,177.83,3.97808981]
[1753967599825,5.6222,177.89,177.83,3.97808981]
[1753967600127,3.97808981,177.92,177.77,104.38]
[1753967600315,15.82411291,177.99,177.83,3.97808981]
[1753967600519,3.97808981,177.92,177.83,3.97808981]
[1753967600721,15.82411291,177.99,177.77,104.38]
[1753967600922,3.97808981,177.93,177.85,3.97808981]
[1753967601118,15.82411291,177.99,177.77,104.38]
[1753967601316,3.97808981,177.89,177.76,377.62]
[1753967601522,3.97808981,177.89,177.8,3.97808981]
[1753967602127,5.623,177.87,177.77,104.38]
[1753967602318,3.97808981,177.92,177.84,3.97808981]
[1753967602518,4.1616147,177.91,177.8,3.97808981]
[1753967602723,3.97808981,177.9,177.82,3.97808981]
[1753967604025,3.97808981,177.9,177.84,5.6235]
[1753967604231,3.97808981,177.9,177.76,114.6]
[1753967604430,5.6225,177.88,177.82,3.97808981]
[1753967604828,5.6222,177.89,177.84,5.6237]
[1753967605030,3.97808981,177.9,177.76,114.6]
[1753967605231,4.58591291,177.99,177.82,3.97808981]
[1753967605527,3.97808981,177.91,177.82,3.97808981]
[1753967605724,5.6224,177.89,177.83,3.97808981]
[1753967606027,3.97808981,177.91,177.83,3.97808981]
[1753967606626,3.97808981,177.98,177.89,3.97808981]
[1753967606830,3.97808981,178.0,177.91,3.97808981]
[1753967607529,6.18950138,178.1,177.93,3.97808981]
[1753967607530,5.6184,178.01,177.93,3.97808981]
[1753967607726,8.56400272,178.11,177.97,3.97808981]
[1753967607925,3.97808981,178.05,177.97,3.97808981]
[1753967608527,3.97808981,178.05,177.87,111.24]
[1753967608726,5.618,178.03,177.98,5.6193]
[1753967608933,6.4828344,178.06,177.96,6.4828344]
[1753967609228,6.4828344,178.06,177.98,5.6192]
[1753967609432,6.4828344,178.06,177.96,6.4828344]
[1753967609737,5.6181,178.02,177.97,5.6194]
[1753967610729,5.6184,178.01,177.96,5.6199]
[1753967610921,6.4828344,178.06,177.95,6.4828344]
[1753967611936,6.4828344,178.06,177.97,6.4828344]
[1753967612335,5.6179,178.03,177.87,117.7228344]
[1753967612536,5.6179,178.03,177.97,6.4828344]
[1753967612737,6.4828344,178.09,177.97,6.4828344]
[1753967612935,5.6165,178.07,178.02,5.618]
[1753967613144,6.4828344,178.11,177.99,6.4828344]
[1753967613547,6.4828344,178.11,178.01,5.6181]
[1753967613735,6.4828344,178.06,177.95,6.4828344]
[1753967614136,6.4828344,178.08,177.97,6.4828344]
[1753967614541,5.6173,178.05,177.99,5.6187]
[1753967615247,6.4828344,178.08,177.97,12.1021344]
[1753967615450,6.4828344,178.08,177.97,6.4828344]
[1753967615744,6.4828344,178.08,177.97,12.1023344]
[1753967615947,6.4828344,178.05,177.93,377.76]
[1753967616145,6.4828344,178.01,177.93,377.76]
[1753967616342,5.6192,177.99,177.94,5.6205]
[1753967617045,5.6195,177.98,177.93,383.3808]
[1753967617344,6.4828344,178.01,177.93,377.76]
[1753967618051,5.6192,177.99,177.94,5.6203]
[1753967618239,6.4828344,178.02,177.93,377.76]
[1753967618748,5.6192,177.99,177.94,5.6204]
[1753967618944,5.6192,177.99,177.9,105.32]
[1753967618945,6.4828344,177.99,177.9,105.32]
[1753967619148,5.6198,177.97,177.92,5.6211]
[1753967619350,6.4828344,177.99,177.9,105.32]
[1753967619548,5.6202,177.96,177.91,5.6214]
[1753967619748,6.4828344,177.99,177.91,5.6214]
[1753967619954,6.4828344,177.99,177.9,105.32]
[1753967620153,5.6201,177.96,177.92,5.6209]
[1753967620343,6.4828344,177.99,177.92,5.6209]
[1753967620752,5.6198,177.97,177.92,5.6209]
[1753967620951,6.4828344,177.99,177.92,5.6209]
[1753967621253,5.6199,177.97,177.93,5.6208]
[1753967622254,5.6198,177.97,177.89,6.4828344]
[1753967622449,6.4828344,178.01,177.91,6.4828344]
[1753967623254,5.6195,177.98,177.94,5.6205]
[1753967623556,6.4828344,178.03,177.93,6.4828344]
[1753967623743,6.4828344,178.05,177.95,6.4828344]
[1753967623948,6.4828344,178.05,177.96,5.6197]
[1753967624150,6.4828344,178.05,177.94,6.4828344]
[1753967624453,6.4828344,178.03,177.94,6.4828344]
[1753967624656,6.4828344,177.99,177.9,6.4828344]
[1753967624853,6.4828344,177.99,177.9,111.6828344]
[1753967625054,6.4828344,177.99,177.92,5.6211]
[1753967625254,6.4828344,177.99,177.9,6.4828344]
[1753967625652,5.6203,177.95,177.91,5.6213]
[1753967626055,6.4828344,177.99,177.89,6.4828344]
[1753967626250,5.62,177.96,177.89,6.4828344]
[1753967626754,5.62,177.96,177.91,6.4828344]
[1753967626954,6.4828344,178.01,177.91,6.4828344]
[1753967627151,6.4828344,178.03,177.93,6.4828344]
[1753967627357,6.4828344,178.03,177.93,12.1034344]
[1753967627655,6.4828344,178.05,177.93,6.4828344]
[1753967627851,6.4828344,178.05,177.95,5.62]
[1753967628052,5.619,177.99,177.95,12.1028344]
[1753967628255,6.4828344,178.05,177.95,6.4828344]
[1753967628451,6.4828344,178.05,177.95,5.6202]
[1753967628655,6.4828344,178.05,177.88,105.2]
[1753967628951,6.4828344,178.03,177.92,12.1039344]
[1753967629152,5.6201,177.96,177.92,12.1039344]
[1753967629353,6.4828344,178.03,177.92,6.4828344]
[1753967629658,5.6206,177.94,177.92,6.4828344]
[1753967630056,6.4828344,178.01,177.92,6.4828344]
[1753967630255,5.6204,177.95,177.92,6.4828344]
[1753967630456,5.6204,177.95,177.92,12.1039344]
[1753967630955,6.4828344,178.01,177.9,5.6217]
[1753967631157,6.4828344,177.99,177.89,111.5628344]
[1753967631956,6.4828344,178.01,177.89,111.5628344]
[1753967632353,6.4828344,177.99,177.89,6.4828344]
[1753967632659,11.2363,178.02,177.85,377.7]
[1753967632660,6.4828344,177.95,177.87,5.6227]
[1753967633757,6.4828344,177.95,177.86,5.623]
[1753967633963,6.4828344,177.95,177.85,384.1828344]
[1753967634354,6.4828344,177.95,177.85,489.2828344]
[1753967634554,6.4828344,177.95,177.85,482.8]
[1753967634756,6.4828344,177.95,177.86,6.4828344]
[1753967635460,5.6217,177.91,177.88,5.6223]
[1753967635855,5.6217,177.91,177.86,6.4828344]
[1753967636159,6.4828344,177.99,177.88,6.4828344]
[1753967636362,4.22041213,177.98,177.88,6.4828344]
[1753967636555,6.4828344,177.99,177.88,6.4828344]
[1753967636756,6.4828344,177.99,177.9,6.4828344]
[1753967636961,4.58104025,178.04,177.9,6.4828344]
[1753967637157,6.4828344,178.0,177.9,6.4828344]
[1753967637356,6.4828344,178.02,177.92,6.4828344]
[1753967637660,4.22104726,178.01,177.92,6.4828344]
[1753967637858,6.4828344,178.0,177.9,111.5228344]
[1753967638263,6.4828344,178.0,177.92,5.621]
[1753967638462,6.4828344,178.0,177.9,111.5228344]
[1753967639263,5.6201,177.96,177.93,5.6209]
[1753967639464,6.4828344,178.0,177.9,111.5228344]
[1753967639667,6.4828344,178.01,177.9,105.04]
[1753967639964,6.4828344,178.01,177.9,111.5228344]
[1753967640165,6.4828344,178.03,177.92,6.4828344]
[1753967640359,4.22154077,178.02,177.95,5.6201]
[1753967640560,6.4828344,178.03,177.92,6.4828344]
[1753967640760,4.22157041,178.02,177.92,6.4828344]
[1753967640959,4.22157041,178.02,177.9,105.04]
[1753967640960,5.6201,177.96,177.93,5.6207]
[1753967641258,5.6201,177.96,177.9,111.5228344]
[1753967641459,5.6197,177.97,177.94,5.6205]
[1753967641961,6.4828344,178.03,177.93,5.6207]
[1753967642262,6.4828344,178.01,177.93,5.6207]
[1753967642464,6.4828344,178.01,177.9,6.4828344]
[1753967642664,6.4828344,177.99,177.9,111.4228344]
[1753967643060,5.6208,177.94,177.91,5.6214]
[1753967643267,6.4828344,177.99,177.9,104.94]
[1753967643664,5.6204,177.95,177.92,5.621]
[1753967643963,6.4828344,177.99,177.89,111.4028344]
[1753967644365,6.4828344,177.99,177.91,5.6213]
[1753967644663,4.587835,178.06,177.89,104.92]
[1753967644664,4.587835,178.04,177.89,104.92]
[1753967644863,6.4828344,177.99,177.89,104.92]
[1753967645657,11.2369,178.01,177.89,104.92]
[1753967645658,6.4828344,178.0,177.89,111.4028344]
[1753967645860,6.4828344,178.0,177.9,6.4828344]
[1753967646064,6.4828344,178.02,177.9,6.4828344]
[1753967646263,4.23100792,178.01,177.9,6.4828344]
[1753967646463,5.62,177.96,177.93,5.6206]
[1753967646664,6.4828344,178.02,177.9,6.4828344]
[1753967646864,4.23196501,178.01,177.92,6.4828344]
[1753967647167,6.4828344,178.02,177.89,104.92]